[Event "7th Cesme Open-A 2019"]
[Site "Cesme"]
[Date "2019.06.28"]
[Round "7"]
[White "Darban, Morteza"]
[Black "Annageldyev, Orazly"]
[Result "0-1"]
[ECO "B40"]
[WhiteElo "2264"]
[BlackElo "2353"]
[Annotator "NA"]
[PlyCount "88"]
[EventDate "2019.06.24"]
[EventType "swiss"]
[EventCountry "TUR"]
[SourceTitle "playchess.com"]
[Source "ChessBase"]
[SourceQuality "1"]
[TimeControl "5400+30"]

1. e4 {[%emt 0:00:30]} c5 {[%emt 0:00:30]} 2. Nc3 {[%emt 0:00:30]} e6 {[%emt 0:00:30]} 3. Nf3 {[%emt 0:00:30]} a6 {[%emt 0:01:30]} 4. g3 {[%emt 0:01:30]} b5 {[%emt 0:03:30]} 5. Bg2 {[%emt 0:00:30]} Bb7 {[%emt 0:00:00]} 6. d3 {[%emt 0:00:30]} Nf6 {[%emt 0:03:00]} 7. O-O {[%emt 0:00:30]} d5 {[%emt 0:06:30]} 8. Bg5 {[%emt 0:13:30]} d4 {[%emt 0:08:30]} 9. Ne2 {[%emt 0:00:30]} Be7 {[%emt 0:01:30]} 10. b4 {[%emt 0:29:30]} Nc6 {[%emt 0:21:30]} 11. bxc5 {[%emt 0:08:30]} e5 {[%emt 0:00:30]} 12. Nh4 {[%emt 0:08:30]} g6 {[%emt 0:00:30]} 13. a4 {[%emt 0:07:30]} bxa4 {[%emt 0:04:30]} 14. Qb1 {[%emt 0:03:30]} Rb8 {[%emt 0:02:30]} 15. Qa2 {[%emt 0:00:00]} Nd7 {[%emt 0:02:30]} 16. Bxe7 {[%emt 0:02:02]} Qxe7 {[%emt 0:00:30]} 17. f4 {[%emt 0:00:41]} Nb4 {[%emt 0:03:30]} 18. Qxa4 {[%emt 0:07:02]} Bc6 {[%emt 0:02:30]} 19. Qb3 {[%emt 0:00:02]} O-O {[%emt 0:17:35]} 20. Qc4 {[%emt 0:06:41]} Qxc5 {[%emt 0:04:43]} 21. Qxc5 {[%emt 0:00:27]} Nxc5 {[%emt 0:00:36]} 22. fxe5 {[%emt 0:00:09]} Rfd8 {[%emt 0:02:00]} 23. Nf3 {[%emt 0:01:14]} Nxc2 {[%emt 0:01:17]} 24. Rac1 {[%emt 0:02:41]} Ba4 {[%emt 0:00:25]} 25. Nexd4 {[%emt 0:01:36]} Nxd4 {[%emt 0:03:23]} 26. Rxc5 {[%emt 0:00:03]} Ne2+ {[%emt 0:00:48]} 27. Kh1 {[%emt 0:03:29]} Rxd3 {[%emt 0:00:13]} 28. Ng5 {[%emt 0:00:36]} Rd7 {[%emt 0:01:36]} 29. Bh3 {[%emt 0:01:12]} Re7 {[%emt 0:00:09]} 30. e6 {[%emt 0:00:13]} fxe6 {[%emt 0:02:57]} 31. Bxe6+ {[%emt 0:00:02]} Kg7 {[%emt 0:00:48]} 32. Bc4 {[%emt 0:00:02]} Bb5 {[%emt 0:01:03]} 33. Ne6+ {[%emt 0:02:09]} Rxe6 {[%emt 0:00:51]} 34. Rxb5 {[%emt 0:00:05]} axb5 {[%emt 0:00:30]} 35. Bxe6 {[%emt 0:00:30]} b4 {[%emt 0:00:30]} 36. Bc4 {[%emt 0:00:00]} Nc3 {[%emt 0:00:00]} 37. Rf7+ {[%emt 0:00:47]} Kh6 {[%emt 0:00:29]} 38. Bb3 {[%emt 0:00:30]} Nxe4 {[%emt 0:00:00]} 39. g4 {[%emt 0:00:21]} Nd2 {[%emt 0:00:28]} 40. Be6 {[%emt 0:00:29]} Rb6 {[%emt 0:02:08]} 41. Bd7 {[%emt 0:00:35]} Kg5 {[%emt 0:00:09]} 42. Kg2 {[%emt 0:00:50]} h5 {[%emt 0:01:04]} 43. Kg3 {[%emt 0:00:31]} h4+ {[%emt 0:01:08]} 44. Kf2 {[%emt 0:00:03]} b3 {[%emt 0:00:05]} 0-1

[Event "7th Cesme Open-A 2019"]
[Site "Cesme"]
[Date "2019.06.28"]
[Round "7"]
[White "Tepe, Efe Can"]
[Black "Barsov, Alexei"]
[Result "0-1"]
[ECO "C18"]
[WhiteElo "2150"]
[BlackElo "2397"]
[Annotator "NA"]
[PlyCount "66"]
[EventDate "2019.06.24"]
[EventType "swiss"]
[EventCountry "TUR"]
[SourceTitle "playchess.com"]
[Source "ChessBase"]
[SourceQuality "1"]
[TimeControl "5400+30"]

1. e4 {[%emt 0:08:30]} e6 {[%emt 0:00:30]} 2. d4 {[%emt 0:00:30]} d5 {[%emt 0:00:00]} 3. Nc3 {[%emt 0:00:30]} Bb4 {[%emt 0:00:00]} 4. e5 {[%emt 0:00:30]} c5 {[%emt 0:00:30]} 5. a3 {[%emt 0:00:00]} Bxc3+ {[%emt 0:00:00]} 6. bxc3 {[%emt 0:00:00]} Ne7 {[%emt 0:00:00]} 7. Qg4 {[%emt 0:00:30]} O-O {[%emt 0:00:00]} 8. Nf3 {[%emt 0:03:30]} Nbc6 {[%emt 0:01:00]} 9. Bd3 {[%emt 0:03:30]} f5 {[%emt 0:00:00]} 10. exf6 {[%emt 0:01:30]} Rxf6 {[%emt 0:00:00]} 11. Bg5 {[%emt 0:12:30]} e5 {[%emt 0:00:30]} 12. Qg3 {[%emt 0:03:30]} Rxf3 {[%emt 0:05:30]} 13. gxf3 {[%emt 0:00:30] [#]} c4 $17 {[%emt 0:04:30]} 14. Bxh7+ {[%emt 0:19:30]} Kxh7 {[%emt 0:00:30]} 15. Rg1 {[%emt 0:04:30]} Qf8 {[%emt 0:01:30]} 16. dxe5 {[%emt 0:02:30]} Nf5 {[%emt 0:16:30]} 17. Qh3+ {[%emt 0:06:30]} Nh6 {[%emt 0:04:30]} 18. Qh5 {[%emt 0:05:30]} Qf5 {[%emt 0:19:30]} 19. f4 {[%emt 0:01:30]} Qxc2 {[%emt 0:08:30]} 20. Rg3 {[%emt 0:11:06]} Be6 {[%emt 0:07:30]} 21. Kf1 {[%emt 0:03:52]} d4 {[%emt 0:00:30]} 22. cxd4 {[%emt 0:00:00]} Nxd4 {[%emt 0:10:02]} 23. Bxh6 {[%emt 0:04:32]} gxh6 {[%emt 0:00:02]} 24. Rd1 {[%emt 0:00:38]} Qf5 {[%emt 0:04:27]} 25. Qh4 {[%emt 0:00:55]} Nc6 {[%emt 0:00:08]} 26. Rd6 {[%emt 0:00:46]} Rf8 {[%emt 0:02:16]} 27. Kg1 {[%emt 0:03:07]} Qb1+ {[%emt 0:02:41]} 28. Kg2 {[%emt 0:00:52]} Qe4+ {[%emt 0:00:10]} 29. f3 {[%emt 0:00:51]} Qf5 {[%emt 0:01:36]} 30. Rg4 {[%emt 0:02:07]} c3 {[%emt 0:01:59]} 31. Qg3 {[%emt 0:00:41]} c2 {[%emt 0:01:17]} 32. Rg7+ {[%emt 0:00:30]} Kh8 {[%emt 0:00:00]} 33. Rg6 {[%emt 0:00:30]} Qxg6 {[%emt 0:01:51]} 0-1

[Event "7th Cesme Open-A 2019"]
[Site "Cesme"]
[Date "2019.06.28"]
[Round "7"]
[White "Caputcuoglu, Zeki Berke"]
[Black "Gokerkan, Cem Kaan"]
[Result "0-1"]
[ECO "D35"]
[WhiteElo "2097"]
[BlackElo "2415"]
[Annotator "NA"]
[PlyCount "136"]
[EventDate "2019.06.24"]
[EventType "swiss"]
[EventCountry "TUR"]
[SourceTitle "playchess.com"]
[Source "ChessBase"]
[SourceQuality "1"]
[TimeControl "5400+30"]

1. Nf3 {[%emt 0:00:30]} Nf6 {[%emt 0:08:30]} 2. d4 {[%emt 0:00:00]} e6 {[%emt 0:00:30]} 3. c4 {[%emt 0:00:00]} d5 {[%emt 0:00:00]} 4. Nc3 {[%emt 0:00:30]} Be7 {[%emt 0:01:00]} 5. Bg5 {[%emt 0:01:30]} O-O {[%emt 0:01:30]} 6. e3 {[%emt 0:00:30]} h6 {[%emt 0:00:30]} 7. Bh4 {[%emt 0:00:30]} Nbd7 {[%emt 0:05:30]} 8. Bd3 {[%emt 0:01:30]} c5 {[%emt 0:10:30]} 9. cxd5 {[%emt 0:04:30]} exd5 {[%emt 0:05:30]} 10. O-O {[%emt 0:01:30]} c4 $14 {[%emt 0:01:30]} 11. Bc2 {[%emt 0:05:30]} b5 {[%emt 0:01:30]} 12. Ne5 {[%emt 0:10:30]} Nxe5 {[%emt 0:10:30]} 13. dxe5 {[%emt 0:00:30]} Ng4 {[%emt 0:00:00]} 14. Bg3 {[%emt 0:04:30]} Bh4 {[%emt 0:00:00]} 15. Qxd5 {[%emt 0:29:30]} Bxg3 {[%emt 0:01:30]} 16. hxg3 {[%emt 0:00:30]} Qxd5 {[%emt 0:00:30]} 17. Nxd5 {[%emt 0:00:30]} Nxe5 {[%emt 0:00:00]} 18. a4 {[%emt 0:00:00]} b4 {[%emt 0:00:00]} 19. Rfd1 {[%emt 0:13:00]} a5 {[%emt 0:02:30]} 20. Nb6 {[%emt 0:02:30]} Rb8 {[%emt 0:17:30]} 21. Rd5 {[%emt 0:03:02]} Rxb6 {[%emt 0:02:30]} 22. Rxe5 {[%emt 0:00:06]} b3 {[%emt 0:06:30]} 23. Be4 {[%emt 0:02:42]} Re6 {[%emt 0:00:30]} 24. Rxe6 {[%emt 0:02:29]} Bxe6 {[%emt 0:00:30]} 25. Kf1 {[%emt 0:03:49]} f5 {[%emt 0:00:30]} 26. Bc6 {[%emt 0:00:32]} c3 {[%emt 0:01:30]} 27. bxc3 {[%emt 0:00:30]} Rc8 {[%emt 0:00:00]} 28. Bb5 {[%emt 0:00:22]} Rxc3 {[%emt 0:00:00]} 29. Rb1 {[%emt 0:00:26]} Kf7 {[%emt 0:03:45]} 30. Ke1 {[%emt 0:01:09]} Ke7 {[%emt 0:00:31]} 31. Rb2 {[%emt 0:01:18]} Rc1+ {[%emt 0:01:32]} 32. Kd2 {[%emt 0:00:14]} Ra1 {[%emt 0:00:19]} 33. Kc3 {[%emt 0:01:09]} Kd6 {[%emt 0:00:37]} 34. Be8 {[%emt 0:03:38]} Kc5 {[%emt 0:00:37]} 35. Bb5 {[%emt 0:00:02]} Rc1+ {[%emt 0:00:28]} 36. Kd2 {[%emt 0:02:28]} Rg1 {[%emt 0:00:02]} 37. Kc3 {[%emt 0:00:33]} Rxg2 {[%emt 0:00:09]} 38. Rd2 {[%emt 0:01:18]} g5 {[%emt 0:01:21]} 39. Be8 {[%emt 0:01:12]} Rh2 {[%emt 0:00:28]} 40. Bg6 {[%emt 0:00:54]} Rh1 {[%emt 0:04:23]} 41. Kb2 {[%emt 0:00:14]} Re1 {[%emt 0:00:00]} 42. Bh5 {[%emt 0:00:27]} Rf1 {[%emt 0:01:20]} 43. Bd1 {[%emt 0:00:27]} Kb4 {[%emt 0:01:15]} 44. Rd4+ {[%emt 0:00:01]} Kc5 {[%emt 0:00:25]} 45. Rd2 {[%emt 0:00:01]} Bf7 {[%emt 0:04:53]} 46. Bxb3 {[%emt 0:01:05]} h5 {[%emt 0:00:30]} 47. Re2 {[%emt 0:00:30]} Bxb3 {[%emt 0:00:30]} 48. Kxb3 {[%emt 0:00:30]} Kd5 {[%emt 0:00:30]} 49. Rd2+ {[%emt 0:00:30]} Ke4 {[%emt 0:01:42]} 50. Kc4 {[%emt 0:01:03]} Kf3 {[%emt 0:01:40]} 51. Rd5 {[%emt 0:01:20]} Kg4 {[%emt 0:00:02]} 52. Rd2 {[%emt 0:00:20]} h4 {[%emt 0:02:39]} 53. Rd4+ {[%emt 0:00:48]} Kh5 {[%emt 0:00:00]} 54. gxh4 {[%emt 0:01:51]} gxh4 {[%emt 0:00:02]} 55. Rf4 {[%emt 0:02:10]} h3 {[%emt 0:00:13]} 56. Rxf5+ {[%emt 0:00:13]} Kg6 {[%emt 0:00:16]} 57. Rf3 {[%emt 0:00:07]} h2 {[%emt 0:00:30]} 58. Rh3 {[%emt 0:00:00]} h1=Q {[%emt 0:00:00]} 59. Rxh1 {[%emt 0:00:27]} Rxh1 {[%emt 0:00:29]} 60. Kb5 {[%emt 0:00:00]} Rh5+ {[%emt 0:00:00]} 61. Ka6 {[%emt 0:00:00]} Kf6 {[%emt 0:00:01]} 62. f4 {[%emt 0:00:04]} Rf5 {[%emt 0:01:13]} 63. Kb6 {[%emt 0:00:47]} Ke7 {[%emt 0:00:15]} 64. Kc6 {[%emt 0:00:48]} Ke6 {[%emt 0:00:09]} 65. Kb6 {[%emt 0:00:09]} Kd6 {[%emt 0:00:06]} 66. e4 {[%emt 0:00:50]} Rxf4 {[%emt 0:00:16]} 67. e5+ {[%emt 0:00:10]} Kxe5 {[%emt 0:00:30]} 68. Kxa5 {[%emt 0:00:30]} Kd6 {[%emt 0:00:00]} 0-1

[Event "7th Cesme Open-A 2019"]
[Site "Cesme"]
[Date "2019.06.28"]
[Round "7"]
[White "Rzayev, Askar Aliakbar"]
[Black "Guliev, Logman"]
[Result "1-0"]
[ECO "E06"]
[WhiteElo "2089"]
[BlackElo "2320"]
[Annotator "NA"]
[PlyCount "92"]
[EventDate "2019.06.24"]
[EventType "swiss"]
[EventCountry "TUR"]
[SourceTitle "playchess.com"]
[Source "ChessBase"]
[SourceQuality "1"]
[TimeControl "5400+30"]

1. d4 {[%emt 0:00:30]} Nf6 {[%emt 0:00:30]} 2. Nf3 {[%emt 0:00:30]} e6 {[%emt 0:00:30]} 3. g3 {[%emt 0:00:00]} d5 {[%emt 0:00:30]} 4. Bg2 {[%emt 0:00:00]} c5 {[%emt 0:00:00]} 5. O-O {[%emt 0:00:30]} Be7 {[%emt 0:00:00]} 6. dxc5 {[%emt 0:00:30]} Bxc5 {[%emt 0:00:30]} 7. c4 {[%emt 0:00:30]} Nc6 {[%emt 0:00:30]} 8. a3 {[%emt 0:00:30]} O-O {[%emt 0:00:00]} 9. b4 {[%emt 0:00:30]} Be7 {[%emt 0:00:00]} 10. cxd5 {[%emt 0:00:30]} Nxd5 {[%emt 0:01:30]} 11. Bb2 {[%emt 0:00:30]} Bf6 {[%emt 0:00:30]} 12. Qb3 {[%emt 0:00:30]} a5 {[%emt 0:11:30]} 13. e4 {[%emt 0:02:30]} a4 {[%emt 0:04:30]} 14. Qc2 {[%emt 0:00:30]} Bxb2 {[%emt 0:00:30]} 15. Qxb2 {[%emt 0:00:00]} Nb6 {[%emt 0:00:30]} 16. Nc3 {[%emt 0:03:00]} Bd7 {[%emt 0:18:30]} 17. Rfd1 {[%emt 0:06:30]} Qf6 {[%emt 0:02:30]} 18. b5 {[%emt 0:09:30]} Na5 {[%emt 0:06:30]} 19. e5 {[%emt 0:01:30]} Qe7 {[%emt 0:00:30]} 20. Ne4 {[%emt 0:00:30]} Nac4 {[%emt 0:14:30]} 21. Qd4 {[%emt 0:01:30]} Rfd8 {[%emt 0:06:30]} 22. Nd6 {[%emt 0:17:30]} Bxb5 {[%emt 0:09:30]} 23. Qf4 {[%emt 0:01:30]} Ba6 {[%emt 0:01:30]} 24. Ng5 {[%emt 0:05:30]} h6 {[%emt 0:02:06]} 25. Qxf7+ {[%emt 0:03:30]} Qxf7 {[%emt 0:00:32]} 26. Ngxf7 {[%emt 0:00:00]} Rd7 {[%emt 0:00:40]} 27. Bh3 {[%emt 0:05:00]} Re7 {[%emt 0:01:49]} 28. Nxc4 {[%emt 0:00:30]} Bxc4 {[%emt 0:00:26]} 29. Nd6 {[%emt 0:00:30]} Bb3 {[%emt 0:00:52]} 30. Rd4 {[%emt 0:02:30]} Nd5 {[%emt 0:01:31]} 31. Rc1 {[%emt 0:00:30]} Kh7 {[%emt 0:00:54]} 32. Bf1 {[%emt 0:01:30]} b6 {[%emt 0:01:07]} 33. Bd3+ {[%emt 0:01:30]} g6 {[%emt 0:00:30]} 34. Rg4 {[%emt 0:00:30]} Rg8 {[%emt 0:00:44]} 35. Rc8 {[%emt 0:02:30]} Rxc8 {[%emt 0:04:33]} 36. Bxg6+ {[%emt 0:00:30]} Kh8 {[%emt 0:00:00]} 37. Nxc8 {[%emt 0:00:00]} Rc7 {[%emt 0:01:43]} 38. Nd6 {[%emt 0:00:00]} Bd1 {[%emt 0:00:00]} 39. f3 {[%emt 0:08:30]} Bxf3 {[%emt 0:00:00]} 40. Rxa4 {[%emt 0:00:30]} Ne3 {[%emt 0:03:47]} 41. h3 {[%emt 0:02:30]} Bd5 {[%emt 0:00:01]} 42. Kf2 {[%emt 0:03:30]} Nd1+ {[%emt 0:02:24]} 43. Ke1 {[%emt 0:00:30]} Ne3 {[%emt 0:03:10]} 44. Ke2 {[%emt 0:01:30]} Nc2 {[%emt 0:00:27]} 45. Bd3 {[%emt 0:01:30]} Na1 {[%emt 0:01:47]} 46. Rh4 {[%emt 0:00:30]} Kg7 {[%emt 0:00:09]} 1-0

[Event "7th Cesme Open-A 2019"]
[Site "Cesme"]
[Date "2019.06.28"]
[Round "7"]
[White "Unat, Can Haktan"]
[Black "Rzayev, Bahruz"]
[Result "1-0"]
[ECO "A44"]
[WhiteElo "2079"]
[BlackElo "2340"]
[Annotator "NA"]
[PlyCount "77"]
[EventDate "2019.06.24"]
[EventType "swiss"]
[EventCountry "TUR"]
[SourceTitle "playchess.com"]
[Source "ChessBase"]
[SourceQuality "1"]
[TimeControl "5400+30"]

1. d4 {[%emt 0:00:30]} c5 {[%emt 0:01:30]} 2. d5 {[%emt 0:02:30]} e5 {[%emt 0:00:30]} 3. Nc3 {[%emt 0:01:30]} d6 {[%emt 0:00:00]} 4. e4 {[%emt 0:04:30]} Nf6 {[%emt 0:01:00]} 5. Nf3 {[%emt 0:04:30]} Be7 {[%emt 0:00:30]} 6. Be2 {[%emt 0:00:30]} O-O {[%emt 0:01:30]} 7. O-O {[%emt 0:00:30]} Ne8 {[%emt 0:00:30]} 8. Nd2 {[%emt 0:00:30]} f5 {[%emt 0:00:30]} 9. exf5 {[%emt 0:00:30]} Bxf5 {[%emt 0:00:00]} 10. Bg4 {[%emt 0:00:30]} Qc8 {[%emt 0:00:00]} 11. Bxf5 {[%emt 0:05:30]} Qxf5 {[%emt 0:00:30]} 12. Nc4 {[%emt 0:07:30]} Nd7 $14 {[%emt 0:02:30]} 13. f4 {[%emt 0:03:30]} Qg6 {[%emt 0:02:30]} 14. Qe2 {[%emt 0:03:30]} Nc7 {[%emt 0:00:30]} 15. a4 {[%emt 0:02:30]} Rae8 {[%emt 0:01:30]} 16. fxe5 {[%emt 0:02:30]} Rxf1+ {[%emt 0:00:30]} 17. Kxf1 {[%emt 0:01:30]} Nxe5 {[%emt 0:00:30]} 18. Nxe5 {[%emt 0:00:30]} dxe5 {[%emt 0:00:00]} 19. Be3 {[%emt 0:00:30]} e4 {[%emt 0:03:00]} 20. Kg1 {[%emt 0:01:30]} Bd6 {[%emt 0:01:30]} 21. Rf1 {[%emt 0:01:30]} b6 {[%emt 0:01:30]} 22. Bf4 {[%emt 0:08:30]} h6 {[%emt 0:02:30]} 23. Qe3 {[%emt 0:02:30]} Kh8 {[%emt 0:04:30]} 24. Qg3 {[%emt 0:02:30]} Qxg3 {[%emt 0:01:30]} 25. hxg3 {[%emt 0:01:30]} Rd8 {[%emt 0:06:30]} 26. Re1 {[%emt 0:05:30]} Kg8 {[%emt 0:01:30]} 27. Kf2 {[%emt 0:01:30]} Kf7 {[%emt 0:00:30]} 28. Rd1 {[%emt 0:05:30]} Kg6 {[%emt 0:01:30]} 29. Ke3 {[%emt 0:00:30]} Kf5 {[%emt 0:00:00]} 30. Rf1 {[%emt 0:00:30]} Kg4 {[%emt 0:12:00]} 31. Bxd6 {[%emt 0:00:30]} Rxd6 {[%emt 0:00:30]} 32. Rf4+ {[%emt 0:00:00]} Kh5 {[%emt 0:04:30]} 33. Kxe4 {[%emt 0:00:00]} Rd7 {[%emt 0:03:30]} 34. Kf5 {[%emt 0:06:30]} g6+ {[%emt 0:01:30]} 35. Ke5 {[%emt 0:00:30]} g5 {[%emt 0:00:30]} 36. Rf8 {[%emt 0:00:30]} Kg4 {[%emt 0:00:00]} 37. d6 {[%emt 0:00:30]} Kxg3 {[%emt 0:00:00]} 38. Ne4+ {[%emt 0:00:30]} Kxg2 {[%emt 0:00:30]} 39. Nf6 {[%emt 0:00:30]} 1-0

[Event "7th Cesme Open-A 2019"]
[Site "Cesme"]
[Date "2019.06.29"]
[Round "8"]
[White "Barsov, Alexei"]
[Black "Bashirov, Teymur"]
[Result "*"]
[ECO "B14"]
[WhiteElo "2397"]
[BlackElo "2238"]
[Annotator "NA RC"]
[PlyCount "75"]
[EventDate "2019.06.24"]
[EventType "swiss"]
[EventCountry "TUR"]
[SourceTitle "playchess.com"]
[Source "ChessBase"]
[SourceQuality "1"]
[TimeControl "5400+30"]

1. d4 {[%emt 0:06:30]} Nf6 {[%emt 0:00:30]} 2. c4 {[%emt 1:23:29]} c5 {[%emt 1:30:30]} 3. e3 {[%emt 0:00:30]} cxd4 {[%emt 0:00:30]} 4. exd4 {[%emt 0:00:30]} g6 {[%emt 0:00:30]} 5. Nc3 {[%emt 0:00:30]} d5 {[%emt 0:00:30]} 6. Qb3 {[%emt 0:00:30]} Bg7 {[%emt 0:00:30]} 7. cxd5 {[%emt 0:00:30]} O-O {[%emt 0:00:30]} 8. Be2 {[%emt 0:00:30]} Qb6 {[%emt 0:00:30]} 9. Qxb6 {[%emt 0:00:30]} axb6 {[%emt 0:00:30]} 10. Nf3 {[%emt 0:00:30]} Rd8 {[%emt 0:00:30]} 11. Bc4 {[%emt 0:00:30]} Na6 {[%emt 0:00:30]} 12. Bg5 {[%emt 0:00:30]} Nb4 {[%emt 0:00:30]} 13. Bxf6 {[%emt 0:00:30]} Bxf6 {[%emt 0:00:30]} 14. O-O {[%emt 0:00:30]} Bf5 {[%emt 0:00:30]} 15. h3 {[%emt 0:00:30]} h5 {[%emt 0:00:30]} 16. a3 {[%emt 0:00:30]} Nc2 {[%emt 0:00:30]} 17. Rad1 {[%emt 0:00:30]} Rac8 {[%emt 0:00:30]} 18. Bd3 {[%emt 0:00:30]} Nxa3 {[%emt 0:00:30]} 19. Bxf5 {[%emt 0:00:30]} gxf5 {[%emt 0:00:30]} 20. Na4 {[%emt 0:00:30]} Nc4 {[%emt 0:00:30]} 21. b3 {[%emt 0:00:30]} b5 {[%emt 0:00:30]} 22. Nc5 {[%emt 0:00:30]} Nd6 {[%emt 0:00:30]} 23. Rfe1 {[%emt 0:00:30]} Kh7 {[%emt 0:00:30]} 24. Ne5 {[%emt 0:00:30]} Rg8 {[%emt 0:00:30]} 25. Ncd7 {[%emt 0:00:30]} Bg7 {[%emt 0:00:30]} 26. Rd3 {[%emt 0:00:30]} Rgd8 {[%emt 0:00:30]} 27. Nc5 {[%emt 0:00:30]} h4 {[%emt 0:00:30]} 28. Rf3 {[%emt 0:00:30]} Kg8 {[%emt 0:00:30]} 29. Rf4 {[%emt 0:00:30]} Bf6 {[%emt 0:00:30]} 30. Nf3 {[%emt 0:00:30]} Ra8 {[%emt 0:00:30]} 31. Re3 {[%emt 0:00:30]} Ra1+ {[%emt 0:00:30]} 32. Kh2 {[%emt 0:00:30]} Kh8 {[%emt 0:00:30]} 33. Nd3 {[%emt 0:00:30]} Rb1 {[%emt 0:00:30]} 34. Nde5 {[%emt 0:00:30]} Rb2 {[%emt 0:00:30]} 35. Nxh4 {[%emt 0:00:30]} Bg5 {[%emt 0:00:30]} 36. Ref3 {[%emt 0:00:30]} Kg7 {[%emt 0:00:30]} 37. g4 {[%emt 0:00:30]} Kf6 {[%emt 0:00:30]} 38. gxf5 {[%emt 0:00:30]} *

[Event "7th Cesme Open-A 2019"]
[Site "Cesme"]
[Date "2019.06.29"]
[Round "8"]
[White "Tuncer, Tuna"]
[Black "Ozkan, Ervin"]
[Result "1-0"]
[ECO "C43"]
[WhiteElo "2365"]
[BlackElo "2159"]
[Annotator "NA"]
[PlyCount "55"]
[EventDate "2019.06.24"]
[EventType "swiss"]
[EventCountry "TUR"]
[SourceTitle "playchess.com"]
[Source "ChessBase"]
[SourceQuality "1"]
[TimeControl "5400+30"]

1. e4 {[%emt 0:00:30]} e5 {[%emt 0:01:30]} 2. Nf3 {[%emt 0:00:00]} Nf6 {[%emt 0:00:30]} 3. d4 {[%emt 0:00:00]} Nxe4 {[%emt 0:00:30]} 4. Bd3 {[%emt 0:00:30]} d5 {[%emt 0:00:00]} 5. Nxe5 {[%emt 0:00:30]} Nd7 {[%emt 0:01:00]} 6. Nxd7 {[%emt 0:00:30]} Bxd7 {[%emt 0:00:00]} 7. O-O {[%emt 0:00:30]} Bd6 {[%emt 0:00:00]} 8. Nc3 {[%emt 0:00:30]} Nxc3 {[%emt 0:14:30]} 9. bxc3 {[%emt 0:00:00]} O-O {[%emt 0:00:30]} 10. Qh5 {[%emt 0:00:00] C43: Petroff Defence: 3 d4} f5 {[%emt 0:03:30]} 11. Re1 {[%emt 0:00:30]} Qf6 {[%emt 0:03:30]} (11... c6 12. Bg5 Qc7 13. Re3 g6 14. Qh4 Rae8 15. Rae1 Rxe3 16. Rxe3 Re8 17. c4 Rxe3 18. Bxe3 {1-0 (44) Nepomniachtchi,I (2771)-Yu,Y (2761) Astana 2019}) 12. Qf3 {[%emt 0:00:30]} Bc6 {[%emt 0:05:30]} 13. Bf4 {[%emt 0:00:30]} Bxf4 $146 {[%emt 0:08:30]} ({Predecessor:} 13... g6 14. Be5 Bxe5 15. dxe5 Qe6 16. Qf4 Kg7 17. h4 h6 18. Re3 b6 19. a4 a5 20. Bf1 Rae8 21. Rd1 Rd8 22. Be2 Bb7 23. Rg3 Kh7 24. Re3 {½-½ (24) Vorontsov,G (2027)-Kuuse,K (2041) ICCF email 2017}) 14. Qxf4 {[%emt 0:00:30]} Qd6 {[%emt 0:01:30]} 15. Re5 {[%emt 0:09:30]} Rae8 {[%emt 0:02:30]} 16. Rae1 {[%emt 0:11:30]} Rxe5 {[%emt 0:01:30]} 17. Rxe5 {[%emt 0:01:30]} g6 {[%emt 0:03:30]} 18. Qe3 {[%emt 0:18:30]} f4 {[%emt 0:09:30]} 19. Qe1 {[%emt 0:08:30]} Qd7 {[%emt 0:11:30]} 20. c4 $14 {[%emt 0:06:30]} dxc4 {[%emt 0:11:11]} 21. Bxc4+ {[%emt 0:00:30]} Kh8 {[%emt 0:00:29]} 22. d5 {[%emt 0:00:30]} Ba4 {[%emt 0:00:45]} 23. Re7 {[%emt 0:02:30]} Qd6 {[%emt 0:00:45]} 24. Qa1+ {[%emt 0:03:30]} Qf6 {[%emt 0:00:30]} 25. Qxf6+ {[%emt 0:00:30]} Rxf6 {[%emt 0:00:30]} 26. Rxc7 {[%emt 0:00:00]} Bxc2 {[%emt 0:04:55]} 27. Rxb7 {[%emt 0:01:00]} a5 {[%emt 0:00:18]} 28. f3 {[%emt 0:01:30]} 1-0

[Event "7th Cesme Open-A 2019"]
[Site "Cesme"]
[Date "2019.06.29"]
[Round "8"]
[White "Koksal, Ege"]
[Black "Dogan, Nazmi Can"]
[Result "1/2-1/2"]
[ECO "A41"]
[WhiteElo "2363"]
[BlackElo "2276"]
[Annotator "ChessBase"]
[PlyCount "51"]
[EventDate "2019.06.24"]
[EventType "swiss"]
[EventCountry "TUR"]
[SourceTitle "playchess.com"]
[Source "ChessBase"]
[SourceQuality "1"]
[TimeControl "5400+30"]

1. d4 {[%emt 0:10:30]} d6 {[%emt 0:00:30]} 2. Nf3 {[%emt 0:00:30]} Bg4 {[%emt 0:00:00]} 3. Nbd2 {[%emt 0:00:00]} Nd7 {[%emt 0:02:00]} 4. h3 {[%emt 0:01:00]} Bh5 {[%emt 0:00:00]} 5. b3 {[%emt 0:03:30]} e6 {[%emt 0:06:00]} 6. Bb2 {[%emt 0:01:30]} Ngf6 {[%emt 0:01:30]} 7. e3 {[%emt 0:02:30]} Be7 {[%emt 0:11:30]} 8. Be2 {[%emt 0:00:30]} c6 {[%emt 0:00:30]} 9. O-O {[%emt 0:00:00]} O-O {[%emt 0:05:30]} 10. c4 {[%emt 0:03:00]} a5 {[%emt 0:14:30]} 11. a3 Qb8 {[%emt 0:00:30]} 12. b4 {[%emt 0:11:00]} b6 {[%emt 0:13:30]} 13. Bc3 {[%emt 0:07:30]} axb4 {[%emt 0:03:30]} 14. axb4 {[%emt 0:00:30]} Qb7 {[%emt 0:00:30]} 15. Qc2 {[%emt 0:01:30]} Bg6 {[%emt 0:01:30]} 16. Bd3 {[%emt 0:03:30]} Bxd3 {[%emt 0:01:30]} 17. Qxd3 {[%emt 0:00:30]} Rxa1 {[%emt 0:00:00]} 18. Rxa1 {[%emt 0:01:30]} Ra8 {[%emt 0:00:00]} 19. Qb1 {[%emt 0:03:30]} Ra7 {[%emt 0:00:30]} 20. Qb2 {[%emt 0:14:30]} Qa8 {[%emt 0:00:30]} 21. Ne1 {[%emt 0:10:30]} Rxa1 {[%emt 0:02:30]} 22. Qxa1 {[%emt 0:00:30]} Qxa1 {[%emt 0:00:30]} 23. Bxa1 {[%emt 0:00:00]} Ne8 {[%emt 0:00:30]} 24. Nd3 {[%emt 0:00:00]} Nc7 {[%emt 0:00:30]} 25. Kf1 {[%emt 0:01:30]} f5 {[%emt 0:02:30]} 26. Ke2 {[%emt 0:02:30]} 1/2-1/2